bitfinex/quotes_ETHUSD_20260306
["timestamp","ask_amount","ask_price","bid_price","bid_amount"]
[1772838783593,0.001,1984.7,1984.6,2.12274808]
[1772838783909,0.001,1984.7,1984.6,2.12384808]
[1772838786319,0.96135047,1985.3,1984.7,0.8630484]
[1772838786519,0.37809122,1985.3,1984.7,0.8630484]
[1772838786720,0.58325925,1985.2,1984.7,0.8630484]
[1772838788123,0.58325925,1985.2,1984.8,1.25957275]
[1772838788329,0.58325925,1985.2,1984.8,2.12262115]
[1772838794329,1.63734691,1985.3,1984.9,0.8630484]
[1772838794330,0.37809122,1985.3,1984.9,0.8630484]
[1772838796118,0.001,1985.2,1985.0,2.21779017]
[1772838798316,0.001,1985.2,1984.9,2.2178086]
[1772838798516,0.001,1985.2,1984.9,1.25946427]
[1772838805023,0.001,1985.5,1984.9,1.25946427]
[1772838805223,0.001,1985.5,1985.0,0.95834433]
[1772838807020,0.001,1985.5,1985.2,0.95834433]
[1772838808245,0.001,1985.4,1985.2,0.95834433]
[1772838809550,0.001,1985.4,1985.3,1.25925552]
[1772838811844,0.001,1985.5,1985.2,0.95834433]
[1772838814158,0.001,1985.5,1985.3,1.25925552]
[1772838820537,0.001,1985.5,1985.3,1.26035552]
[1772838820737,0.001,1985.4,1985.3,1.26035552]
[1772838821658,0.001,1985.4,1985.3,2.21869985]
[1772838821958,0.001,1985.5,1985.4,0.95784433]
[1772838823960,0.001,1985.5,1985.4,2.16703643]
[1772838826465,0.001,1985.5,1985.4,1.2591921]
[1772838828463,0.001,1985.5,1985.3,0.94910655]
[1772838831269,1e-08,1985.6,1985.4,1.2591921]
[1772838833050,1e-08,1985.6,1985.5,0.001]
[1772838833251,1e-08,1985.6,1985.4,1.2591921]
[1772838833566,0.002,1985.5,1985.4,1.2591921]
[1772838833766,0.002,1985.5,1985.4,1.2601921]
[1772838836278,0.002,1985.5,1985.4,0.001]
[1772838841745,0.002,1985.6,1985.4,0.95588446]
[1772838843657,0.002,1985.6,1985.5,1.25912868]
[1772838843859,0.002,1985.6,1985.5,2.21401314]
[1772838844068,0.002,1985.8,1985.6,0.95488446]
[1772838845864,0.002,1985.8,1985.6,2.21389629]
[1772838848472,0.002,1985.8,1985.7,0.95488446]
[1772838850288,0.002,1985.8,1985.7,2.21388632]
[1772838851191,1e-08,1986.1,1985.8,0.95488446]
[1772838853094,1e-08,1986.1,1985.8,2.21379749]
[1772838857565,0.001,1986.0,1985.8,2.21379749]
[1772838869587,0.001,1986.0,1985.8,0.95488446]
[1772838869901,0.001,1986.0,1985.9,0.001]
[1772838870706,0.001,1986.0,1985.9,0.95588446]
[1772838871072,0.001,1986.0,1985.9,0.001]
[1772838874509,0.001,1986.0,1985.9,0.95588446]
[1772838877508,0.001,1986.0,1985.9,2.21475952]
[1772838878991,0.00200001,1986.1,1986.0,0.95438446]
[1772838879583,0.00200001,1986.1,1986.0,2.21319614]
[1772838881298,0.00200001,1986.1,1986.0,0.95438446]
[1772838881512,0.00200001,1986.1,1985.9,2.21421237]
[1772838883284,0.00200001,1986.1,1986.0,0.001]
[1772838893424,0.00200001,1986.1,1986.0,0.95538446]
[1772838897103,0.00200001,1986.1,1986.0,0.001]
[1772838897835,0.00200001,1986.1,1986.0,0.00011665]
[1772838898933,0.00200001,1986.1,1985.9,0.001]
[1772838902632,0.00200001,1986.1,1985.9,0.95538446]
[1772838903936,0.00200001,1986.1,1985.9,0.001]
[1772838907245,0.00200001,1986.1,1986.0,0.001]
[1772838907616,0.00200001,1986.1,1986.0,0.00011673]
[1772838908845,0.00200001,1986.1,1985.9,0.001]
[1772838917652,0.00200001,1986.1,1985.9,0.00011684]
[1772838917832,0.00200001,1986.1,1985.7,0.95538446]
[1772838919146,0.00200001,1986.1,1986.0,0.001]
[1772838919331,0.002,1986.0,1985.7,0.95538446]
[1772838919649,0.002,1986.0,1985.9,0.001]
[1772838926249,0.002,1986.0,1985.9,0.00011698]
[1772838927674,0.002,1986.0,1985.7,0.95538446]
[1772838931498,0.002,1986.0,1985.8,0.001]
[1772838936001,0.002,1986.0,1985.6,0.001]
[1772838936194,0.002,1986.0,1985.7,0.8632383]
[1772838940109,1.26081168,1986.0,1985.7,0.8632383]
[1772838941509,2.11931325,1986.0,1985.6,0.19449512]
[1772838943213,2.11931325,1986.0,1985.8,0.001]
[1772838943513,0.002,1985.9,1985.6,0.19449512]
[1772838943699,0.002,1985.9,1985.7,0.001]
[1772838949718,0.85850157,1985.8,1985.7,0.001]
[1772838951617,0.85850157,1985.8,1985.2,1e-08]
[1772838951618,0.92474789,1985.6,1985.2,1e-08]
[1772838951811,0.92474789,1985.6,1985.0,0.0011]
[1772838952135,0.92474789,1985.6,1985.2,0.00210921]
[1772838955245,2.18846537,1985.5,1985.2,0.00310921]
[1772838955539,2.18846537,1985.5,1985.2,0.001]
[1772838957118,0.92933669,1985.5,1985.2,0.001]
[1772838957342,2.18851513,1985.5,1985.2,0.001]
[1772838958727,2.18842424,1985.6,1985.0,0.00618707]
[1772838959128,0.92933669,1985.5,1985.0,0.00618707]
[1772838960363,0.92933669,1985.5,1985.0,0.0011]
[1772838960364,0.92933669,1985.3,1985.0,0.0011]
[1772838961369,0.92933669,1985.3,1985.0,0.02332335]
[1772838966466,1.2591921,1985.4,1985.1,0.03306505]
[1772838966467,0.92459257,1985.4,1985.1,0.03306505]
[1772838967269,0.92459257,1985.4,1985.1,0.03416505]
[1772838967446,0.001,1985.2,1985.1,0.03416505]
[1772838967646,5.03608698,1985.7,1985.1,0.03416505]
[1772838967647,0.92509257,1985.7,1985.2,0.03379791]
[1772838967951,2.18411295,1985.7,1985.2,0.03379791]
[1772838968670,2.18411295,1985.7,1985.3,0.03552116]
[1772838968865,0.92509257,1985.7,1985.3,0.03552116]
[1772838971094,0.92509257,1985.7,1985.4,1.29807783]
[1772838972069,0.92509257,1985.7,1985.4,0.03888573]
[1772838972658,1.26094309,1985.8,1985.4,0.03888573]
[1772838973281,0.92709257,1985.8,1985.4,1.29804431]
[1772838974082,0.92709257,1985.8,1985.5,0.04117406]
[1772838975804,2.18603355,1985.8,1985.5,0.04117406]
[1772838977401,0.92509257,1985.7,1985.3,1.30335674]
[1772838977704,0.92509257,1985.7,1985.1,0.0011]
[1772838977903,0.92509257,1985.4,1985.1,0.0011]
[1772838980406,0.92509257,1985.3,1985.1,0.0011]
[1772838983813,0.92509257,1985.5,1985.2,0.04824621]
[1772838984505,0.92509257,1985.5,1985.1,0.05001124]
[1772838984805,0.92509257,1985.4,1984.9,0.001]
[1772838986516,1.25925552,1985.3,1984.9,0.001]
[1772838986716,0.92509257,1985.2,1984.9,0.001]
[1772838990116,0.92509257,1985.0,1984.9,0.001]
[1772838999019,2.18453841,1985.0,1984.9,0.001]
[1772838999218,0.92509257,1985.0,1984.9,0.001]
[1772839005848,0.92509257,1985.0,1984.7,1.26680395]
[1772839009372,0.92509257,1985.0,1984.6,5.03988226]
[1772839009373,0.95196438,1984.9,1984.6,0.0011]
[1772839009534,0.95196438,1984.9,1984.6,1.26079537]
[1772839009860,0.95196438,1984.9,1984.6,0.0011]
[1772839010234,0.95196438,1984.9,1984.6,1.26079413]
[1772839010433,0.95196438,1984.9,1984.6,0.01877857]
[1772839011575,2.2114774,1984.9,1984.6,0.01877857]
[1772839013053,2.2114774,1984.9,1984.6,0.0011]
[1772839013654,0.95196438,1984.8,1984.6,0.0011]
[1772839014749,0.95196438,1985.0,1984.6,0.02079456]
[1772839015157,0.95196438,1985.0,1984.7,0.0011]
[1772839015528,0.001,1984.9,1984.7,0.0011]
[1772839016980,0.001,1984.9,1984.7,0.02224185]
[1772839018483,0.001,1984.9,1984.7,1.28185636]
[1772839024180,0.001,1984.9,1984.7,0.0011]
[1772839024686,0.95894303,1984.9,1984.7,0.0011]
[1772839026682,0.95894303,1984.9,1984.8,0.0011]
[1772839028366,0.001,1984.9,1984.8,0.0011]
[1772839030789,0.95894303,1984.9,1984.8,0.0011]
[1772839039207,0.001,1984.9,1984.8,0.0011]
[1772839039605,0.001,1984.9,1984.7,0.02634983]
[1772839046002,0.95894303,1984.9,1984.7,0.0011]
[1772839050210,0.95894303,1984.9,1984.8,0.0011]
[1772839050383,0.001,1984.8,1984.7,0.0011]
[1772839052618,0.94949257,1984.8,1984.7,0.0011]
[1772839062216,0.001,1984.8,1984.7,0.0011]
[1772839068628,0.94949257,1984.8,1984.7,0.0011]
[1772839075637,0.001,1984.8,1984.7,0.0011]
[1772839078738,0.94949257,1984.8,1984.7,0.0011]
[1772839086135,0.001,1984.8,1984.7,0.0011]
[1772839087146,0.001,1984.9,1984.7,0.01656991]
[1772839087327,1.26127438,1985.3,1984.8,0.01446991]
[1772839087529,0.94899257,1985.2,1984.8,0.01446991]
[1772839088543,0.94899257,1985.2,1984.8,1.27399688]
[1772839094637,0.94899257,1985.2,1984.9,0.01248311]
[1772839094958,0.002,1985.3,1984.8,1.25952697]
[1772839096438,0.002,1985.3,1984.7,0.0011]
[1772839097159,0.002,1985.3,1984.7,1.6161]
[1772839097527,0.002,1985.3,1984.8,0.0011]
[1772839097728,0.001,1985.2,1984.8,0.0011]
[1772839098534,0.001,1985.2,1984.8,1.26067275]
[1772839103561,1.26108723,1985.6,1984.8,1.26067275]
[1772839103562,0.002,1985.6,1984.8,1.26067275]
[1772839109371,0.002,1985.6,1984.9,0.0011]
[1772839109755,0.001,1985.5,1984.9,0.0011]
[1772839117570,0.95623413,1985.5,1984.9,0.0011]
[1772839118081,0.002,1985.6,1984.9,0.0011]
[1772839118272,0.89372958,1985.6,1985.0,0.87571438]
[1772839119463,0.89372958,1985.6,1985.1,2.13509677]
[1772839119984,0.89372958,1985.6,1985.2,0.87571438]
[1772839121555,0.001,1985.4,1985.3,1.25925552]
[1772839121755,0.89372958,1985.6,1985.3,1.25925552]
[1772839133011,0.89372958,1985.6,1985.4,0.001]
[1772839133305,0.002,1985.5,1985.4,0.001]
[1772839141613,0.95238051,1985.5,1985.1,0.001]
[1772839143083,0.95238051,1985.5,1985.1,1.26038142]
[1772839145213,0.883663,1985.4,1985.2,0.001]
[1772839156425,0.885663,1985.5,1985.2,0.001]
[1772839156630,0.002,1985.6,1985.3,0.90283397]
[1772839158833,0.002,1985.6,1985.4,2.16202607]
[1772839165133,0.002,1985.8,1985.5,0.95808683]
[1772839165531,0.01851689,1985.8,1985.5,0.95808683]
[1772839167230,0.01851689,1985.8,1985.6,1.25906526]
[1772839169222,0.002,1985.7,1985.6,1.25906526]
[1772839178523,0.002,1985.7,1985.5,2.21719673]
[1772839181146,0.002,1985.6,1985.5,2.21719673]
[1772839181559,0.002,1985.6,1985.5,2.21819673]
[1772839187746,0.002,1985.8,1985.6,0.95708683]
[1772839192757,0.002,1985.8,1985.7,2.21608869]
[1772839192938,0.002,1985.8,1985.7,2.21708869]
[1772839194546,0.002,1985.8,1985.7,1.26000186]
[1772839199770,0.002,1985.8,1985.7,2.21708869]
[1772839203169,0.002,1985.8,1985.7,1.26000186]
[1772839203375,0.0821605,1985.8,1985.5,1.26010465]
[1772839204448,0.0821605,1985.8,1985.5,0.001]
[1772839204971,0.0821605,1985.8,1985.6,0.001]
[1772839205348,0.002,1985.7,1985.6,0.001]
[1772839209579,0.08799342,1985.9,1985.7,0.98787873]
[1772839209580,0.002,1985.9,1985.7,0.98787873]
[1772839209749,1.26069048,1986.2,1985.8,0.98787873]
[1772839210089,0.08999342,1986.2,1985.8,0.98787873]
[1772839214283,1.34868296,1986.2,1985.8,2.24677813]
[1772839214583,0.09198609,1986.1,1985.8,2.24677813]
[1772839217286,0.001,1986.0,1985.8,2.24677813]
[1772839218382,0.001,1986.0,1985.9,0.98787873]
[1772839221190,0.002,1986.2,1986.0,0.98787873]
[1772839221367,0.09805947,1986.4,1986.1,0.98787873]
[1772839221572,0.09805947,1986.4,1985.9,2.24675379]
[1772839222174,0.09805947,1986.4,1985.9,1.25887506]
[1772839222362,0.09805947,1986.4,1985.9,2.24675379]
[1772839222560,0.09805947,1986.4,1985.9,1.25887506]
[1772839222778,0.09805947,1986.4,1985.9,2.24675379]
[1772839224785,0.09805947,1986.4,1985.9,1.25887506]
[1772839224965,0.09805947,1986.4,1985.9,2.24675379]
[1772839225990,0.09805947,1986.4,1986.0,0.98787873]
[1772839229488,0.09805947,1986.4,1986.1,1.2587483]
[1772839229794,0.002,1986.3,1986.1,1.2587483]
[1772839230469,0.002,1986.3,1986.2,0.98787873]
[1772839231590,0.002,1986.3,1986.2,2.24656365]
[1772839232369,0.10541406,1986.6,1986.3,0.99105945]
[1772839233298,0.002,1986.6,1986.3,0.99105945]
[1772839234590,0.002,1986.6,1986.4,2.24961764]
[1772839241907,0.002,1986.6,1986.4,2.25061764]
[1772839242209,0.002,1986.5,1986.4,2.25061764]
[1772839246722,0.002,1986.5,1986.4,0.99205945]
[1772839246906,0.002,1986.5,1986.4,1.25955819]
[1772839248586,0.11421043,1986.5,1986.4,0.001]
[1772839249518,0.002,1986.5,1986.4,0.001]
[1772839252010,0.002,1986.5,1986.4,0.99205945]
[1772839253929,0.002,1986.5,1986.4,2.25061764]
[1772839255121,0.002,1986.8,1986.5,0.99105945]
[1772839255520,0.002,1986.8,1986.5,0.99205945]
[1772839256026,0.002,1986.8,1986.6,2.24949094]
[1772839256522,0.002,1986.7,1986.6,2.24949094]
[1772839265903,1.25779834,1987.6,1986.7,0.99956812]
[1772839266109,0.12019601,1987.5,1986.7,0.99956812]
[1772839267113,1.08818759,1987.5,1986.6,2.25799961]
[1772839267447,1.25779834,1987.6,1986.5,2.25902354]
[1772839267448,0.12056515,1987.2,1986.5,2.25902354]
[1772839267815,0.12056515,1987.2,1986.7,0.001]
[1772839268022,0.12094264,1987.0,1986.7,0.001]
[1772839268730,0.12128659,1986.8,1986.7,0.001]
[1772839278336,0.12128659,1986.8,1986.7,0.00015334]
[1772839280438,0.12328659,1986.8,1986.7,0.00015334]
[1772839283149,0.1241139,1987.3,1986.7,0.00015334]
[1772839283653,5.03144944,1987.5,1986.8,0.99956812]
[1772839283654,0.12411979,1987.5,1986.8,0.99956812]
[1772839286449,0.12411979,1987.5,1986.9,2.2578096]
[1772839286450,0.12415501,1987.3,1986.9,2.2578096]
[1772839288828,1.38218933,1987.3,1986.9,0.99956812]
[1772839293444,0.002,1987.2,1986.9,0.99956812]
[1772839297147,0.12624972,1987.2,1986.8,1.01051299]
[1772839297523,0.12624972,1987.2,1986.8,0.001]
[1772839300148,1.25811484,1987.1,1986.8,0.001]
[1772839300355,2.23798719,1987.1,1986.8,1.01051299]
[1772839305560,0.97987235,1987.1,1986.8,1.01051299]
[1772839305858,2.23799304,1987.1,1986.8,1.01051299]
[1772839306455,0.97987235,1987.1,1986.8,1.01051299]
[1772839306957,0.002,1987.2,1986.9,1.00951299]
[1772839307656,0.002,1987.2,1987.0,1.00951299]
[1772839307862,0.002,1987.1,1987.0,1.00951299]
[1772839308532,0.002,1987.1,1986.9,1.01051299]
[1772839314863,0.98187235,1987.1,1986.9,0.001]
[1772839316991,0.92467823,1987.0,1986.7,0.94174915]
[1772839317153,0.92467823,1987.0,1986.6,1.25942971]
[1772839317154,0.92467823,1987.0,1986.6,0.001]
[1772839318946,0.92467823,1986.8,1986.6,0.001]
[1772839321271,2.18304637,1986.7,1986.6,0.001]
[1772839334257,2.18504637,1986.7,1986.6,0.001]
[1772839339195,0.002,1986.7,1986.6,0.001]
[1772839346295,0.002,1986.7,1986.6,0.00015337]
[1772839347199,1.02973809,1986.7,1986.6,0.00015337]
[1772839353602,0.002,1986.9,1986.7,0.44464799]
[1772839353805,2.21926179,1986.9,1986.6,0.00015337]
[1772839354012,2.21923234,1986.9,1986.6,0.00015337]
[1772839354590,0.96099081,1986.9,1986.6,0.00015337]
[1772839355600,0.96099081,1986.9,1986.6,0.44711819]
[1772839358720,0.96099081,1986.9,1986.7,0.001]
[1772839358921,2.21923584,1986.9,1986.7,0.001]
[1772839359129,1.05873404,1986.8,1986.5,0.001]
[1772839359428,1.05873404,1986.8,1986.5,0.00435558]
[1772839361315,2.31704664,1986.8,1986.5,0.00435558]
[1772839362825,1.05873404,1986.8,1986.5,0.00435558]
[1772839363524,0.002,1986.8,1986.5,0.00435558]
[1772839370731,0.002,1986.8,1986.6,0.001]
[1772839373732,1.05873404,1986.8,1986.6,0.001]
[1772839375639,1.05673404,1986.7,1986.6,0.001]
[1772839382335,1.05873404,1986.7,1986.6,0.001]
[1772839383411,0.002,1986.7,1986.6,0.001]
[1772839384341,0.002,1986.8,1986.7,0.03595277]
[1772839384517,0.002,1986.8,1986.7,0.00520083]
[1772839384719,0.002,1986.8,1986.6,0.00620083]
[1772839385240,0.002,1986.8,1986.6,0.001]
[1772839388350,1.07511001,1986.8,1986.6,0.001]
[1772839389148,0.002,1986.8,1986.6,0.01040896]
[1772839389821,0.002,1986.8,1986.6,0.001]
[1772839390436,1.07511001,1986.8,1986.6,1.25943149]
[1772839394438,1.07511001,1986.8,1986.7,0.001]
[1772839406467,1.07261001,1986.7,1986.6,0.001]
[1772839407150,1.07461001,1986.7,1986.6,0.001]
[1772839407870,0.002,1986.7,1986.6,0.001]
[1772839434492,0.002,1986.7,1986.4,0.001]
[1772839434493,1.07261001,1986.6,1986.4,0.001]
[1772839434695,2.03992908,1986.6,1986.2,0.001]
[1772839435006,2.03992908,1986.6,1986.0,0.001]
[1772839435007,1.07211001,1986.5,1986.0,0.001]
[1772839436504,1.25855819,1986.4,1986.0,0.001]
[1772839436793,1.07211001,1986.3,1986.0,0.001]
[1772839438788,1.07211001,1986.2,1986.0,0.001]
[1772839441192,2.33080495,1986.2,1986.0,0.001]
[1772839442104,1.07211001,1986.2,1986.0,0.001]
[1772839442506,1.07211001,1986.1,1985.7,0.001]
[1772839442681,1.07211001,1986.1,1985.5,0.001]
[1772839443275,1.07161001,1985.9,1985.8,0.001]
[1772839445003,1.07161001,1985.9,1985.5,0.001]
[1772839445502,1.07161001,1985.7,1985.3,0.001]
[1772839445973,1.07161001,1985.7,1985.1,0.001]
[1772839448879,1.07161001,1985.5,1985.1,0.001]
[1772839452579,1.07161001,1985.3,1985.1,0.001]
[1772839455316,2.33086553,1985.3,1985.2,0.001]
[1772839458612,1.07111001,1985.2,1985.0,0.0011]
[1772839458797,1.07111001,1985.2,1984.7,0.00790732]
[1772839458998,1.07111001,1985.2,1984.6,1.26859667]
[1772839459199,1.07111001,1985.2,1984.6,0.00890732]
[1772839460013,1.07111001,1985.0,1984.6,0.00890732]
[1772839460792,1.25935483,1985.2,1984.4,0.00834838]
[1772839461811,2.33041104,1985.3,1984.4,0.00834838]
[1772839462590,1.07111001,1985.2,1984.6,0.0077913]
[1772839465617,1.07111001,1985.2,1984.8,0.00697607]
[1772839468125,2.33043897,1985.2,1984.8,0.00697607]
[1772839468298,1.07211001,1985.1,1984.8,0.00697607]
[1772839470160,0.001,1985.1,1984.8,0.00697607]
[1772839471829,2.70746832,1985.7,1984.9,0.00543642]
[1772839472032,1.44846478,1985.7,1984.9,0.00543642]
[1772839472422,2.70748565,1985.7,1984.9,0.00543642]
[1772839473133,1.44846478,1985.7,1984.9,0.00543642]
[1772839474235,0.37735477,1985.7,1984.9,0.00543642]
[1772839480026,0.37735477,1985.7,1985.1,0.00330008]
[1772839480216,1.07211001,1985.6,1985.1,0.00330008]
[1772839480404,1.07211001,1985.6,1985.0,0.0011]
[1772839480610,1.07111001,1985.5,1985.0,0.00417854]
[1772839482832,1.07111001,1985.4,1985.0,0.00417854]
[1772839484217,1.07111001,1985.4,1985.1,0.00243259]
[1772839493149,1.07111001,1985.4,1985.2,0.0011]
[1772839493313,0.001,1985.3,1985.2,0.0011]
[1772839494746,0.001,1985.6,1985.2,0.0011]
[1772839494957,1.07361001,1985.9,1985.2,0.0011]
[1772839496041,0.002,1985.9,1985.2,0.0011]
[1772839496342,0.002,1986.1,1985.2,1.3641]
[1772839496546,0.37419137,1986.2,1985.2,1.3641]
[1772839497654,0.37419137,1986.2,1985.3,1.25925552]
[1772839498429,1.07161001,1986.1,1985.3,1.25925552]
[1772839498636,0.37419137,1986.2,1985.3,1.25925552]
[1772839498834,0.002,1986.6,1985.6,0.14948499]
[1772839499153,1.07161001,1987.6,1986.9,0.008]
[1772839499525,1.07161001,1987.5,1986.6,2.44157268]
[1772839499728,1.07161001,1987.5,1986.7,1.25836814]
[1772839500354,1.07161001,1987.4,1986.7,1.25836814]
[1772839502654,1.07161001,1987.2,1986.3,1.25862155]
[1772839504858,0.001,1987.1,1986.3,1.25862155]
[1772839507863,1.07261001,1987.1,1986.3,1.25862155]
[1772839510271,1.07161001,1986.9,1986.3,1.25862155]
[1772839511666,1.07161001,1986.9,1985.9,1.25887506]
[1772839512257,1.07161001,1986.7,1985.8,5.03573478]
[1772839514451,1.25843149,1986.6,1985.8,5.03573478]
[1772839514653,1.07161001,1986.5,1985.8,5.03573478]
[1772839516678,1.07161001,1986.5,1985.9,0.0011]
[1772839517939,1.07161001,1986.7,1985.9,0.0011]
[1772839518266,1.07161001,1986.8,1985.9,0.0011]
[1772839523163,1.06990574,1987.0,1986.0,0.97337101]
[1772839523369,1.06990574,1987.0,1986.2,0.97337101]
[1772839523680,1.06990574,1987.0,1986.4,0.97337101]
[1772839524189,1.07090574,1987.1,1986.4,0.97337101]
[1772839525274,1.07090574,1987.1,1986.6,0.97337101]
[1772839528782,1.07090574,1987.1,1986.7,1.25836814]
[1772839528981,1.06990574,1986.9,1986.7,1.25836814]
[1772839532082,0.001,1987.0,1986.7,2.25966857]
[1772839536986,0.001,1987.0,1986.8,1.00130043]
[1772839538993,0.001,1987.0,1986.8,2.25955788]
[1772839540264,1.05329264,1986.9,1986.3,1.00130043]
[1772839541083,1.05329264,1986.9,1986.8,0.001]
[1772839541284,1.05529264,1986.9,1986.8,0.001]
[1772839550101,1.05329264,1986.8,1986.5,0.001]
[1772839550993,1.05329264,1986.8,1986.5,1.25949004]
[1772839553696,1.05529264,1986.8,1986.5,1.25949004]
[1772839554286,1.05529264,1986.8,1986.6,0.001]
[1772839556222,2.31360178,1986.8,1986.6,0.001]
[1772839556428,2.31360178,1986.8,1986.5,0.001]
[1772839556429,1.0032043,1986.7,1986.5,0.001]
[1772839556603,1.0032043,1986.7,1986.2,1.25864612]
[1772839556784,1.0032043,1986.7,1986.2,2.26400259]
[1772839557799,1.0032043,1986.7,1986.3,1.00535647]
[1772839557995,1.0052043,1986.8,1986.3,1.00535647]
[1772839559715,1.0052043,1986.8,1986.4,2.26391466]
[1772839562010,0.002,1986.8,1986.5,1.02753717]
[1772839564925,0.97897759,1987.0,1986.6,2.28596866]
[1772839565115,0.001,1987.0,1986.7,1.02753717]
[1772839566422,0.002,1986.8,1986.7,1.02753717]
[1772839567121,0.002,1986.8,1986.7,2.28590531]
[1772839576947,0.001,1987.1,1986.7,2.28590531]
[1772839576948,0.001,1987.1,1986.8,1.02753717]
[1772839577111,0.97797759,1987.6,1986.9,1.02753717]
[1772839579413,2.2358364,1987.6,1987.1,1.02753717]
[1772839579717,0.97797759,1987.5,1987.1,1.02753717]
[1772839583127,0.97797759,1987.6,1987.3,1.02753717]
[1772839585046,0.97797759,1987.6,1987.1,2.28560446]
[1772839585047,1.25783537,1987.6,1987.1,2.28560446]
[1772839585265,1.25783537,1987.6,1987.1,1.02753717]
[1772839585266,0.97797759,1987.5,1987.1,1.02753717]
[1772839585420,0.97797759,1987.5,1987.1,2.28565169]
[1772839585760,0.97797759,1987.5,1987.0,2.28566826]
[1772839587870,0.97797759,1987.5,1987.1,1.02753717]
[1772839589949,0.97797759,1987.5,1986.9,5.03289737]
[1772839590153,0.97797759,1987.3,1986.7,1.02753717]
[1772839590855,0.97797759,1987.3,1986.9,0.001]
[1772839591242,0.97797759,1987.3,1986.6,0.001]
[1772839591861,0.97797759,1987.3,1986.7,0.001]
[1772839592059,1.25805152,1987.2,1986.7,0.001]
[1772839592232,1.02389196,1987.1,1986.7,0.001]
[1772839595032,2.28207011,1987.0,1986.7,0.001]
[1772839595664,1.02389196,1987.0,1986.7,0.001]
[1772839599272,2.28207292,1987.0,1986.7,0.001]
[1772839599952,2.28207292,1987.0,1986.7,1.03250849]
[1772839600779,1.02389196,1986.9,1986.7,0.001]
[1772839603478,1.02389196,1986.9,1986.8,0.001]
[1772839604377,2.28407292,1987.0,1986.8,0.001]
[1772839616060,2.28407292,1987.0,1986.9,0.001]
[1772839618378,2.28407292,1987.0,1986.9,0.0001463]
[1772839628405,2.28407292,1987.0,1986.8,0.00016776]
[1772839629007,0.002,1986.9,1986.8,0.00016776]
[1772839637704,0.002,1986.9,1986.8,0.99797112]
[1772839638312,0.002,1986.9,1986.8,0.50725324]
[1772839641012,0.002,1986.9,1986.8,0.50825324]
[1772839648397,0.002,1986.9,1986.8,0.08828414]
[1772839650827,0.002,1986.9,1986.8,0.001]
[1772839662140,0.002,1986.9,1986.6,0.001]
[1772839662141,1.03079468,1986.8,1986.6,0.001]
[1772839662933,0.002,1986.9,1986.6,1.03601237]
[1772839665138,0.002,1986.8,1986.6,1.03601237]
[1772839671146,1.03279468,1986.8,1986.6,0.001]
[1772839673653,0.002,1986.8,1986.6,0.001]
[1772839675555,0.98479468,1986.9,1986.6,0.001]
[1772839676752,1.25830481,1986.8,1986.7,0.001]
[1772839677347,1.26030481,1986.8,1986.7,0.001]
[1772839679336,1.06859718,1986.8,1986.7,0.001]
[1772839679641,1.06859718,1986.8,1986.6,0.001]
[1772839683156,2.32695529,1986.8,1986.6,0.001]
[1772839688767,2.32695529,1986.8,1986.7,0.001]
[1772839695406,1.02825945,1986.7,1986.4,0.001]
[1772839695541,1.02825945,1986.4,1986.0,1.25988068]
[1772839696058,1.02825945,1986.4,1986.0,0.0011]
[1772839696237,1.02825945,1986.4,1986.0,1.25991071]
[1772839696443,1.02825945,1986.4,1986.0,0.0011]
[1772839697044,1.02825945,1986.3,1986.0,0.0011]
[1772839699975,1.02825945,1986.1,1986.0,0.0011]
[1772839704052,1.02825945,1986.2,1986.0,0.0011]
[1772839709097,2.28694545,1986.2,1986.0,0.0011]
[1772839711679,1.02825945,1986.2,1986.0,0.0011]
[1772839712772,2.28694825,1986.2,1986.0,0.0011]
[1772839713156,2.28694825,1986.2,1986.1,0.0011]
[1772839713483,2.28794825,1986.2,1986.1,0.0011]
[1772839716604,1.02925945,1986.2,1986.1,0.0011]
[1772839716767,0.001,1986.2,1986.1,0.0011]
[1772839722706,2.25553706,1986.3,1986.1,0.0011]
[1772839722707,1.10767748,1986.4,1986.1,0.0011]
[1772839724699,2.3662576,1986.4,1986.2,0.0011]
[1772839724898,1.10767748,1986.3,1986.2,0.0011]
[1772839726777,1.25858012,1986.4,1986.2,0.0011]
[1772839727808,1.10767748,1986.4,1986.2,0.0011]
[1772839730323,1.25862155,1986.3,1986.2,0.0011]
[1772839730618,2.36629903,1986.3,1986.2,0.0011]
[1772839736088,1.10767748,1986.3,1986.2,0.0011]
[1772839736907,1.10867748,1986.3,1986.2,0.0011]
[1772839738436,0.001,1986.3,1986.2,0.0011]
[1772839738732,1.25937266,1986.7,1986.3,0.0151584]
[1772839739109,0.001,1986.7,1986.3,0.0151584]
[1772839739326,1.2593751,1986.7,1986.3,0.0151584]
[1772839739611,1.25937256,1986.7,1986.3,0.0151584]
[1772839740308,0.001,1986.7,1986.3,0.0151584]
[1772839741041,1.25937749,1986.7,1986.3,1.27374996]
[1772839741338,1.25937749,1986.7,1986.4,0.01685634]
[1772839742143,2.36755497,1986.7,1986.4,0.01685634]
[1772839744712,2.36755497,1986.7,1986.2,1.2806709]
[1772839744911,2.36755497,1986.7,1986.3,0.02093095]
[1772839745114,1.10817748,1986.6,1986.3,0.02093095]
[1772839748120,1.10817748,1986.6,1986.4,0.0011]
[1772839748446,1.10817748,1986.6,1986.4,0.02435877]
[1772839748447,0.001,1986.6,1986.4,0.02435877]
[1772839748956,1.10917748,1986.6,1986.4,0.0011]
[1772839749245,0.001,1986.6,1986.4,0.02511592]
[1772839751212,0.001,1986.6,1986.4,0.02660731]
[1772839753450,0.001,1986.6,1986.4,0.0011]
[1772839755645,1.10917748,1986.6,1986.4,0.0011]
[1772839755823,0.001,1986.6,1986.4,0.03015132]
[1772839762264,1.10917748,1986.6,1986.4,0.0011]
[1772839764733,2.36765481,1986.6,1986.4,0.0011]
[1772839771972,1.1090729,1986.5,1986.4,0.0011]
[1772839772440,1.1100729,1986.5,1986.4,0.0011]
[1772839774353,2.36856774,1986.5,1986.4,0.0011]
[1772839777272,1.1090729,1986.4,1986.0,0.0011]
[1772839781078,1.1090729,1986.2,1986.0,0.0011]